[Event "4th Baskent University Open 2019"]
[Site "Ankara"]
[Date "2019.06.20"]
[Round "6"]
[White "Gultekin, Celal"]
[Black "Yildirim, Ibrahim Halil"]
[Result "0-1"]
[ECO "D18"]
[WhiteElo "1533"]
[BlackElo "1787"]
[Annotator "NA"]
[PlyCount "98"]
[EventDate "2019.06.18"]
[EventType "swiss"]
[EventCountry "TUR"]
[SourceTitle "playchess.com"]
[Source "ChessBase"]
[SourceQuality "1"]
[TimeControl "5400+30"]

1. d4 {[%emt 0:00:30]} d5 {[%emt 0:00:30]} 2. c4 {[%emt 0:00:30]} c6 {[%emt 0:00:00]} 3. Nf3 {[%emt 0:00:30]} Nf6 {[%emt 0:00:00]} 4. Nc3 {[%emt 0:00:00]} dxc4 {[%emt 0:00:30]} 5. a4 {[%emt 0:00:00]} Bf5 {[%emt 0:00:00]} 6. e3 {[%emt 0:00:30]} e6 {[%emt 0:00:00]} 7. Bxc4 {[%emt 0:00:30]} Bb4 {[%emt 0:00:30]} 8. O-O {[%emt 0:00:30]} Nbd7 {[%emt 0:00:00]} 9. Qb3 {[%emt 0:01:30]} a5 {[%emt 0:00:00]} 10. Nh4 {[%emt 0:06:30]} Be4 {[%emt 0:15:30]} 11. Nxe4 {[%emt 0:02:30]} Nxe4 {[%emt 0:00:30]} 12. Nf3 {[%emt 0:02:30]} Qe7 {[%emt 0:15:30]} 13. Qc2 {[%emt 0:04:30]} Nef6 {[%emt 0:02:30]} 14. e4 {[%emt 0:04:30]} e5 {[%emt 0:10:30]} 15. Bg5 {[%emt 0:09:30]} O-O {[%emt 0:04:30]} 16. Nh4 {[%emt 0:04:30]} exd4 {[%emt 0:10:30]} 17. Nf5 {[%emt 0:02:30]} Qxe4 {[%emt 0:13:30]} 18. Bd3 {[%emt 0:01:30]} Qd5 {[%emt 0:09:36]} 19. f4 {[%emt 0:00:30]} Ng4 {[%emt 0:07:54]} 20. Rad1 {[%emt 0:07:30]} g6 {[%emt 0:01:51]} 21. Nh6+ {[%emt 0:03:30]} Nxh6 {[%emt 0:00:30]} 22. Bxh6 {[%emt 0:00:00]} Rfe8 {[%emt 0:00:00]} 23. f5 {[%emt 0:00:00]} Ne5 {[%emt 0:00:44]} 24. fxg6 {[%emt 0:00:30]} hxg6 {[%emt 0:03:07]} 25. Qf2 {[%emt 0:05:30]} Nxd3 {[%emt 0:02:22]} 26. Qf6 {[%emt 0:00:30]} Bf8 {[%emt 0:01:08]} 27. Bxf8 {[%emt 0:00:30]} Rxf8 {[%emt 0:00:15]} 28. Rxd3 {[%emt 0:00:30]} Qe6 {[%emt 0:00:16]} 29. Qh4 {[%emt 0:01:30]} Qe5 {[%emt 0:01:44]} 30. Rh3 {[%emt 0:07:30]} Qg7 {[%emt 0:00:30]} 31. Rf6 {[%emt 0:00:00]} Rad8 {[%emt 0:00:27]} 32. Rd3 {[%emt 0:00:00]} Rfe8 {[%emt 0:00:33]} 33. Rxd4 {[%emt 0:03:30]} Rxd4 {[%emt 0:00:34]} 34. Qxd4 {[%emt 0:00:30]} Re1+ {[%emt 0:00:00]} 35. Kf2 {[%emt 0:00:30]} Re6 {[%emt 0:00:39]} 36. Qd8+ {[%emt 0:00:30]} Kh7 {[%emt 0:00:01]} 37. Rf3 {[%emt 0:00:30]} Qxb2+ {[%emt 0:00:43]} 38. Kg3 {[%emt 0:00:00]} Qe5+ {[%emt 0:00:00]} 39. Kh3 {[%emt 0:00:00]} Kg7 {[%emt 0:01:59]} 40. g4 {[%emt 0:00:30]} Re8 {[%emt 0:00:00]} 41. Qd7 {[%emt 0:00:30]} Rh8+ {[%emt 0:01:01]} 42. Kg2 {[%emt 0:00:30]} Qxh2+ {[%emt 0:00:25]} 43. Kf1 {[%emt 0:00:00]} Qh1+ {[%emt 0:00:00]} 44. Kf2 {[%emt 0:01:00]} Rh2+ {[%emt 0:00:15]} 45. Ke3 {[%emt 0:00:30]} Qe1+ {[%emt 0:00:15]} 46. Kf4 {[%emt 0:00:00]} Qd2+ {[%emt 0:00:09]} 47. Qxd2 {[%emt 0:00:00]} Rxd2 {[%emt 0:00:01]} 48. Rb3 {[%emt 0:01:30]} Rd4+ {[%emt 0:00:30]} 49. Kg3 {[%emt 0:00:00]} Rb4 {[%emt 0:00:00]} 0-1

[Event "4th Baskent University Open 2019"]
[Site "Ankara"]
[Date "2019.06.21"]
[Round "7"]
[White "Mammadov, Zaur"]
[Black "Gulbeyaz, Emir"]
[Result "1-0"]
[ECO "D78"]
[WhiteElo "2428"]
[BlackElo "2157"]
[Annotator "NA RC"]
[PlyCount "67"]
[EventDate "2019.06.18"]
[EventType "swiss"]
[EventCountry "TUR"]
[SourceTitle "playchess.com"]
[Source "ChessBase"]
[SourceQuality "1"]
[TimeControl "5400+30"]

1. d4 {[%emt 0:00:30]} Nf6 {[%emt 0:02:30]} 2. Nf3 {[%emt 0:00:00]} g6 {[%emt 0:00:30]} 3. Nbd2 {[%emt 0:00:00]} d5 {[%emt 0:00:00]} 4. c4 {[%emt 0:00:30]} c6 {[%emt 0:01:00]} 5. g3 {[%emt 0:00:00]} Bg7 {[%emt 0:00:30]} 6. Bg2 {[%emt 0:00:00]} O-O {[%emt 0:00:30]} 7. O-O {[%emt 0:00:00]} a5 {[%emt 0:02:30]} 8. Re1 {[%emt 0:01:00]} a4 {[%emt 0:01:30]} 9. Ne5 {[%emt 0:03:30]} Ng4 {[%emt 0:08:30]} 10. Nef3 {[%emt 0:03:30]} c5 {[%emt 0:17:30]} 11. h3 {[%emt 0:07:30]} Nf6 {[%emt 0:15:30]} 12. dxc5 {[%emt 0:01:30]} Nbd7 {[%emt 0:00:30]} 13. cxd5 {[%emt 0:00:30]} Nxc5 {[%emt 0:00:30]} 14. e4 {[%emt 0:01:30]} Nd3 {[%emt 0:06:30]} 15. Re3 {[%emt 0:00:30]} Nxc1 {[%emt 0:00:30]} 16. Rxc1 {[%emt 0:00:30]} Bd7 {[%emt 0:02:30]} 17. Rec3 {[%emt 0:02:30]} e6 {[%emt 0:04:30]} 18. d6 {[%emt 0:13:30]} Bc6 {[%emt 0:02:30]} 19. Qe2 {[%emt 0:03:30]} Nd7 {[%emt 0:04:30]} 20. R3c2 {[%emt 0:04:30]} Qb8 {[%emt 0:05:30]} 21. Nc4 {[%emt 0:02:30]} Bb5 {[%emt 0:01:30]} 22. Qd2 {[%emt 0:04:30]} Ra6 {[%emt 0:05:48]} 23. Rd1 {[%emt 0:00:30]} Rd8 {[%emt 0:01:05]} 24. Na3 {[%emt 0:02:30]} Bc6 {[%emt 0:00:26]} 25. Nd4 {[%emt 0:01:30]} Ne5 {[%emt 0:07:50]} 26. f4 {[%emt 0:09:30]} Rxd6 {[%emt 0:03:46]} 27. fxe5 {[%emt 0:00:30]} Bxe5 {[%emt 0:00:16]} 28. Qf2 {[%emt 0:00:30]} Rd7 {[%emt 0:02:43]} 29. Rd3 {[%emt 0:00:30]} Bxd4 {[%emt 0:02:11]} 30. Rxd4 {[%emt 0:00:30]} Rxd4 {[%emt 0:00:16]} 31. Qxd4 {[%emt 0:00:30]} Qxg3 {[%emt 0:00:00]} 32. Qd8+ {[%emt 0:00:00]} Kg7 {[%emt 0:00:00]} 33. Rf2 {[%emt 0:00:00]} Bxe4 {[%emt 0:01:03]} 34. Qd4+ {[%emt 0:00:00]} 1-0

[Event "4th Baskent University Open 2019"]
[Site "Ankara"]
[Date "2019.06.21"]
[Round "7"]
[White "Simantsev, Mikhail"]
[Black "Gulsoy, Mustafa Alpago"]
[Result "1-0"]
[ECO "A42"]
[WhiteElo "2371"]
[BlackElo "2055"]
[Annotator "NA RC"]
[PlyCount "59"]
[EventDate "2019.06.18"]
[EventType "swiss"]
[EventCountry "TUR"]
[SourceTitle "playchess.com"]
[Source "ChessBase"]
[SourceQuality "1"]
[TimeControl "5400+30"]

1. d4 {[%emt 0:07:30]} d6 {[%emt 0:00:30]} 2. Nf3 {[%emt 0:01:30]} g6 {[%emt 0:00:00]} 3. c4 {[%emt 0:00:00]} Bg7 {[%emt 0:00:00]} 4. Nc3 {[%emt 0:01:00]} Nc6 {[%emt 0:00:00]} 5. e4 {[%emt 0:02:30]} e5 {[%emt 0:00:00]} 6. Bg5 {[%emt 0:02:30]} f6 {[%emt 0:00:30]} 7. Be3 {[%emt 0:00:00]} Nh6 {[%emt 0:00:30]} 8. h3 {[%emt 0:00:00]} O-O {[%emt 0:07:30]} 9. d5 {[%emt 0:13:30]} Ne7 {[%emt 0:01:30]} 10. Qd2 {[%emt 0:00:30]} Nf7 {[%emt 0:00:30]} 11. Bd3 {[%emt 0:29:30]} f5 {[%emt 0:07:30]} 12. g3 {[%emt 0:00:30]} fxe4 {[%emt 0:00:30]} 13. Nxe4 {[%emt 0:01:30]} Nf5 {[%emt 0:01:30]} 14. g4 {[%emt 0:00:00]} Nxe3 {[%emt 0:05:30]} 15. fxe3 {[%emt 0:08:00]} Bh6 {[%emt 0:01:30]} 16. O-O-O {[%emt 0:00:30]} Bd7 {[%emt 0:00:30]} 17. Rdg1 {[%emt 0:00:30]} c6 {[%emt 0:05:30]} 18. g5 {[%emt 0:01:30]} Bg7 {[%emt 0:00:00]} 19. h4 {[%emt 0:00:00]} b5 {[%emt 0:06:00]} 20. h5 {[%emt 0:01:00]} Nh8 {[%emt 0:02:30]} 21. Nh4 {[%emt 0:07:30]} cxd5 {[%emt 0:09:30]} 22. cxd5 {[%emt 0:00:00]} Rf7 {[%emt 0:00:30]} 23. hxg6 {[%emt 0:02:45]} hxg6 {[%emt 0:02:30]} 24. Kb1 {[%emt 0:00:02]} Bf5 {[%emt 0:03:30]} 25. Nxf5 {[%emt 0:02:10]} gxf5 {[%emt 0:00:30]} 26. Nf6+ {[%emt 0:00:08]} Rxf6 {[%emt 0:00:30]} 27. gxf6 {[%emt 0:00:34]} Qxf6 {[%emt 0:00:30]} 28. Qh2 {[%emt 0:02:54]} Ng6 {[%emt 0:06:30]} 29. Qh7+ {[%emt 0:00:43]} Kf7 {[%emt 0:00:30]} 30. Rh6 {[%emt 0:00:00]} 1-0

[Event "4th Baskent University Open 2019"]
[Site "Ankara"]
[Date "2019.06.21"]
[Round "7"]
[White "Arat, Ufuk Sezen"]
[Black "Bagaturov, Giorgi"]
[Result "1/2-1/2"]
[ECO "A47"]
[WhiteElo "2368"]
[BlackElo "2422"]
[Annotator "RC"]
[PlyCount "125"]
[EventDate "2019.06.18"]
[EventType "swiss"]
[EventCountry "TUR"]
[SourceTitle "playchess.com"]
[Source "ChessBase"]
[SourceQuality "1"]
[TimeControl "5400+30"]

1. d4 {[%emt 0:08:30]} Nf6 {[%emt 0:00:30]} 2. Nf3 {[%emt 0:00:30]} e6 {[%emt 0:02:30]} 3. e3 {[%emt 0:00:00]} b6 {[%emt 0:01:30]} 4. Bd3 {[%emt 0:00:00]} Bb7 {[%emt 0:00:30]} 5. Nbd2 {[%emt 0:00:30]} c5 {[%emt 0:01:30]} 6. c3 {[%emt 0:00:00]} Nc6 {[%emt 0:01:30]} 7. O-O {[%emt 0:08:00]} Qc7 {[%emt 0:08:30]} 8. a3 {[%emt 0:06:30]} d5 {[%emt 0:05:30]} 9. Re1 {[%emt 0:09:30]} Be7 {[%emt 0:11:30]} 10. dxc5 {[%emt 0:03:30]} Bxc5 {[%emt 0:01:30]} 11. h3 {[%emt 0:09:30]} Rd8 {[%emt 0:12:30]} 12. Qe2 {[%emt 0:03:30]} O-O {[%emt 0:03:30]} 13. e4 {[%emt 0:03:30]} Nh5 {[%emt 0:06:30]} 14. Nf1 {[%emt 0:10:30]} Ne5 {[%emt 0:10:30]} 15. Bc2 {[%emt 0:04:30]} dxe4 {[%emt 0:01:30]} 16. Bxe4 {[%emt 0:14:00]} Bxe4 {[%emt 0:02:30]} 17. Qxe4 {[%emt 0:01:04]} Nd3 {[%emt 0:06:30]} 18. Re2 {[%emt 0:00:06]} Nxc1 {[%emt 0:09:24]} 19. Rxc1 {[%emt 0:00:06]} Nf4 {[%emt 0:00:27]} 20. Rec2 {[%emt 0:04:08]} f5 {[%emt 0:01:09]} 21. Qe5 {[%emt 0:03:05]} Bd6 {[%emt 0:03:24]} 22. Qb5 {[%emt 0:00:09]} Qb7 {[%emt 0:01:00]} 23. Rd2 {[%emt 0:04:28]} Nxh3+ {[%emt 0:03:29]} 24. gxh3 {[%emt 0:02:06]} Qxf3 {[%emt 0:00:30]} 25. Rcd1 {[%emt 0:00:00]} Bc5 {[%emt 0:00:06]} 26. Qc4 {[%emt 0:02:07]} Bxf2+ {[%emt 0:02:05]} 27. Kh2 {[%emt 0:00:02]} Bh4 {[%emt 0:01:14]} 28. Qxe6+ {[%emt 0:02:17]} Kh8 {[%emt 0:00:04]} 29. Rxd8 {[%emt 0:00:18]} Bxd8 {[%emt 0:00:05]} 30. Qd5 {[%emt 0:01:59]} Bc7+ {[%emt 0:01:03]} 31. Kg1 {[%emt 0:00:01]} Qxh3 {[%emt 0:00:02]} 32. Qg2 {[%emt 0:00:19]} Qh6 {[%emt 0:01:00]} 33. Rd7 {[%emt 0:00:02]} Bd6 {[%emt 0:00:23]} 34. b4 {[%emt 0:00:33]} Be5 {[%emt 0:01:00]} 35. c4 {[%emt 0:00:59]} Qf6 {[%emt 0:00:38]} 36. Rxa7 {[%emt 0:00:55]} Bd4+ {[%emt 0:00:42]} 37. Kh1 {[%emt 0:00:10]} Qh6+ {[%emt 0:00:28]} 38. Nh2 {[%emt 0:00:26]} Qc1+ {[%emt 0:00:32]} 39. Qf1 {[%emt 0:00:20]} Qe3 {[%emt 0:00:48]} 40. Qg2 {[%emt 0:01:01]} h6 {[%emt 0:00:42]} 41. Nf1 {[%emt 0:00:28]} Qc1 {[%emt 0:00:54]} 42. Ra8 {[%emt 0:00:03]} Rxa8 {[%emt 0:00:21]} 43. Qxa8+ {[%emt 0:00:30]} Kh7 {[%emt 0:00:30]} 44. Qf3 {[%emt 0:00:00]} Qb1 {[%emt 0:00:15]} 45. Kg2 {[%emt 0:00:36]} Qc2+ {[%emt 0:00:20]} 46. Kh1 {[%emt 0:00:20]} Qf2 {[%emt 0:00:51]} 47. Qxf2 {[%emt 0:01:16]} Bxf2 {[%emt 0:00:04]} 48. Kg2 {[%emt 0:00:32]} Bd4 {[%emt 0:00:07]} 49. Ng3 {[%emt 0:00:38]} Kg6 {[%emt 0:00:21]} 50. Ne2 {[%emt 0:00:14]} Bb2 {[%emt 0:00:20]} 51. a4 {[%emt 0:00:50]} Be5 {[%emt 0:00:40]} 52. Kf3 {[%emt 0:00:55]} Kf6 {[%emt 0:00:05]} 53. a5 {[%emt 0:00:41]} bxa5 {[%emt 0:00:30]} 54. bxa5 {[%emt 0:00:00]} Bc7 {[%emt 0:00:18]} 55. a6 {[%emt 0:00:00]} Bb6 {[%emt 0:00:03]} 56. Nf4 {[%emt 0:00:47]} Ba7 {[%emt 0:00:59]} 57. Nd5+ {[%emt 0:00:19]} Ke5 {[%emt 0:01:14]} 58. Ne7 {[%emt 0:00:09]} Bc5 {[%emt 0:00:40]} 59. Nc6+ {[%emt 0:00:50]} Kd6 {[%emt 0:00:30]} 60. a7 {[%emt 0:00:00]} Bxa7 {[%emt 0:00:18]} 61. Nxa7 {[%emt 0:00:06]} g5 {[%emt 0:00:30]} 62. Nc8+ {[%emt 0:00:00]} Kc5 {[%emt 0:00:21]} 63. Ne7 {[%emt 0:00:25]} 1/2-1/2

[Event "4th Baskent University Open 2019"]
[Site "Ankara"]
[Date "2019.06.21"]
[Round "7"]
[White "Kazimova, Narmin"]
[Black "Nikcevic, Nebojsa"]
[Result "1-0"]
[ECO "A28"]
[WhiteElo "2271"]
[BlackElo "2420"]
[Annotator "NA RC"]
[PlyCount "85"]
[EventDate "2019.06.18"]
[EventType "swiss"]
[EventCountry "TUR"]
[SourceTitle "playchess.com"]
[Source "ChessBase"]
[SourceQuality "1"]
[TimeControl "5400+30"]

1. c4 {[%emt 0:00:30]} e5 {[%emt 0:05:30]} 2. Nc3 {[%emt 0:00:30]} Nf6 {[%emt 0:00:00]} 3. Nf3 {[%emt 0:03:30]} Nc6 {[%emt 0:00:00]} 4. d4 {[%emt 0:05:30]} exd4 {[%emt 0:01:30]} 5. Nxd4 {[%emt 0:00:30]} Bb4 {[%emt 0:00:00]} 6. Bg5 {[%emt 0:00:30]} h6 {[%emt 0:03:00]} 7. Bh4 {[%emt 0:03:30]} Bxc3+ {[%emt 0:01:30]} 8. bxc3 {[%emt 0:00:30]} Ne5 {[%emt 0:00:30]} 9. f4 {[%emt 0:02:30]} Ng6 {[%emt 0:04:30]} 10. Bxf6 {[%emt 0:00:30]} Qxf6 {[%emt 0:00:00]} 11. g3 {[%emt 0:00:30]} O-O {[%emt 0:09:00]} 12. Bg2 {[%emt 0:11:30]} d6 {[%emt 0:03:30]} 13. O-O {[%emt 0:02:30]} c6 {[%emt 0:00:30]} 14. Rb1 {[%emt 0:04:30]} Rd8 {[%emt 0:03:30]} 15. e4 {[%emt 0:08:30]} Nf8 {[%emt 0:02:30]} 16. Qh5 {[%emt 0:02:30]} Qe7 {[%emt 0:02:30]} 17. Rbe1 {[%emt 0:09:30]} Nh7 {[%emt 0:01:30]} 18. Bh3 {[%emt 0:16:30]} Qf8 {[%emt 0:31:30]} 19. Bxc8 {[%emt 0:12:57]} Raxc8 {[%emt 0:00:30]} 20. e5 {[%emt 0:02:22]} Re8 {[%emt 0:03:30]} 21. Kh1 {[%emt 0:04:44]} g6 {[%emt 0:13:20]} 22. Qh4 {[%emt 0:00:53]} dxe5 {[%emt 0:00:30]} 23. fxe5 {[%emt 0:00:00]} Qg7 {[%emt 0:00:00]} 24. e6 {[%emt 0:00:57]} f6 {[%emt 0:02:15]} 25. Re3 {[%emt 0:02:07]} Re7 {[%emt 0:00:09]} 26. Qf4 {[%emt 0:01:20]} h5 {[%emt 0:05:55]} 27. g4 {[%emt 0:01:02]} hxg4 {[%emt 0:01:35]} 28. Qxg4 {[%emt 0:00:01]} c5 {[%emt 0:00:28]} 29. Nb5 {[%emt 0:01:22]} Rc6 {[%emt 0:00:27]} 30. Nxa7 {[%emt 0:01:13]} f5 {[%emt 0:00:12]} 31. Qe2 {[%emt 0:00:09]} Ra6 {[%emt 0:00:47]} 32. Nc8 {[%emt 0:02:23]} Re8 {[%emt 0:00:04]} 33. e7 {[%emt 0:00:00]} Nf6 {[%emt 0:04:17]} 34. Rd1 {[%emt 0:01:27]} Qh6 {[%emt 0:00:05]} 35. Re6 {[%emt 0:00:01]} Ne4 {[%emt 0:01:08]} 36. Rxe4 {[%emt 0:00:30]} fxe4 {[%emt 0:00:29]} 37. Qxe4 {[%emt 0:00:29]} Rxa2 {[%emt 0:00:18]} 38. Qe6+ {[%emt 0:00:52]} Kg7 {[%emt 0:00:04]} 39. Qe5+ {[%emt 0:00:00]} Kh7 {[%emt 0:00:06]} 40. Rf1 {[%emt 0:00:37]} Qh3 {[%emt 0:02:20]} 41. Rf7+ {[%emt 0:00:46]} Kh6 {[%emt 0:00:02]} 42. Qf4+ {[%emt 0:00:21]} g5 {[%emt 0:00:06]} 43. Qf6+ {[%emt 0:00:00]} 1-0

[Event "4th Baskent University Open 2019"]
[Site "Ankara"]
[Date "2019.06.21"]
[Round "7"]
[White "Kizilkus, Akin"]
[Black "Pacher, Milan"]
[Result "1/2-1/2"]
[ECO "A65"]
[WhiteElo "2131"]
[BlackElo "2434"]
[Annotator "NA RC"]
[PlyCount "104"]
[EventDate "2019.06.18"]
[EventType "swiss"]
[EventCountry "TUR"]
[SourceTitle "playchess.com"]
[Source "ChessBase"]
[SourceQuality "1"]
[TimeControl "5400+30"]

1. d4 {[%emt 0:00:30]} Nf6 {[%emt 0:00:30]} 2. c4 {[%emt 0:00:30]} c5 {[%emt 0:00:30]} 3. d5 {[%emt 0:00:30]} e6 {[%emt 0:00:30]} 4. Nc3 {[%emt 0:00:30]} exd5 {[%emt 0:00:30]} 5. cxd5 {[%emt 0:00:30]} d6 {[%emt 0:00:30]} 6. e4 {[%emt 0:00:00]} g6 {[%emt 0:00:00]} 7. Bd3 {[%emt 0:00:00]} Bg7 {[%emt 0:00:00]} 8. h3 {[%emt 0:00:00]} O-O {[%emt 0:00:00]} 9. Bg5 {[%emt 0:00:00]} a6 {[%emt 0:02:00]} 10. a4 {[%emt 0:00:00]} Nbd7 {[%emt 0:00:00]} 11. Nf3 {[%emt 0:00:00]} Re8 {[%emt 0:01:00]} 12. O-O {[%emt 0:00:00]} Qc7 {[%emt 0:02:30]} 13. Re1 {[%emt 0:00:00]} h6 {[%emt 0:06:30]} 14. Be3 {[%emt 0:01:30]} c4 {[%emt 0:04:30]} 15. Bc2 {[%emt 0:00:30]} Nc5 {[%emt 0:00:30]} 16. Bd4 {[%emt 0:07:30]} Bd7 {[%emt 0:01:30]} 17. e5 {[%emt 0:08:30]} dxe5 {[%emt 0:00:30]} 18. Nxe5 {[%emt 0:16:30]} Nh5 {[%emt 0:02:30]} 19. d6 {[%emt 0:03:30]} Qxd6 {[%emt 0:06:30]} 20. Bxc5 {[%emt 0:03:30]} Qxc5 {[%emt 0:00:00]} 21. Nxd7 {[%emt 0:02:30]} Qc7 {[%emt 0:00:00]} 22. Rxe8+ {[%emt 0:03:30]} Rxe8 {[%emt 0:00:00]} 23. a5 {[%emt 0:11:30]} Rd8 {[%emt 0:02:00]} 24. Ba4 {[%emt 0:01:30]} Qxa5 {[%emt 0:00:00]} 25. Nd5 {[%emt 0:13:30]} Bxb2 {[%emt 0:07:00]} 26. Rb1 {[%emt 0:01:30]} c3 {[%emt 0:00:30]} 27. g4 {[%emt 0:03:30]} Ng7 {[%emt 0:04:30]} 28. N5f6+ {[%emt 0:01:30]} Kh8 {[%emt 0:08:30]} 29. Bb3 {[%emt 0:02:56]} Qg5 {[%emt 0:06:30]} 30. Qe2 {[%emt 0:02:53]} c2 {[%emt 0:00:30]} 31. Bxc2 {[%emt 0:01:56]} Bxf6 {[%emt 0:00:30]} 32. Nxf6 {[%emt 0:00:55]} Qxf6 {[%emt 0:00:00]} 33. Rxb7 {[%emt 0:00:00]} Ne6 {[%emt 0:01:00]} 34. Rb6 {[%emt 0:01:36]} Kg7 {[%emt 0:08:30]} 35. Qe3 {[%emt 0:01:51]} Qg5 {[%emt 0:03:30]} 36. Qc3+ {[%emt 0:03:31]} Nd4 {[%emt 0:01:30]} 37. Bxg6 {[%emt 0:01:22]} Qe5 {[%emt 0:01:30]} 38. Qe3 {[%emt 0:01:21]} Qc5 {[%emt 0:04:30]} 39. Rxa6 {[%emt 0:04:30]} fxg6 {[%emt 0:00:30]} 40. Rc6 {[%emt 0:00:05]} Qd5 {[%emt 0:04:30]} 41. Qe7+ {[%emt 0:01:55]} Qf7 {[%emt 0:00:30]} 42. Rxg6+ {[%emt 0:00:30]} Kxg6 {[%emt 0:00:30]} 43. Qxd8 {[%emt 0:00:30]} Ne2+ {[%emt 0:00:30]} 44. Kg2 {[%emt 0:00:04]} Nf4+ {[%emt 0:01:30]} 45. Kg3 {[%emt 0:01:11]} Nd5 {[%emt 0:00:30]} 46. Qd6+ {[%emt 0:00:41]} Nf6 {[%emt 0:00:30]} 47. h4 {[%emt 0:00:13]} Qb3+ {[%emt 0:00:30]} 48. f3 {[%emt 0:00:15]} Qc3 {[%emt 0:00:30]} 49. Qe7 {[%emt 0:00:38]} Qd4 {[%emt 0:03:30]} 50. h5+ {[%emt 0:00:34]} Nxh5+ {[%emt 0:00:30]} 51. gxh5+ {[%emt 0:00:08]} Kf5 {[%emt 0:00:30]} 52. Qf7+ {[%emt 0:00:16]} Qf6 {[%emt 0:00:00]} 1/2-1/2

[Event "4th Baskent University Open 2019"]
[Site "Ankara"]
[Date "2019.06.21"]
[Round "7"]
[White "Yildirim, Ibrahim Halil"]
[Black "Ipek, Yunus Enes"]
[Result "1-0"]
[ECO "B54"]
[WhiteElo "1787"]
[BlackElo "1628"]
[Annotator "NA RC"]
[PlyCount "43"]
[EventDate "2019.06.18"]
[EventType "swiss"]
[EventCountry "TUR"]
[SourceTitle "playchess.com"]
[Source "ChessBase"]
[SourceQuality "1"]
[TimeControl "5400+30"]

1. e4 {[%emt 0:00:30]} c5 {[%emt 0:21:30]} 2. Nf3 {[%emt 0:00:00]} a6 {[%emt 0:00:00]} 3. c4 {[%emt 0:06:00]} d6 {[%emt 0:02:00]} 4. d4 {[%emt 0:01:30]} cxd4 {[%emt 0:00:30]} 5. Nxd4 {[%emt 0:00:00]} Nf6 {[%emt 0:00:30]} 6. Nc3 {[%emt 0:00:00]} g6 {[%emt 0:00:30]} 7. Be3 {[%emt 0:01:30]} Ng4 {[%emt 0:02:30]} 8. Bg5 {[%emt 0:02:30]} h6 {[%emt 0:02:30]} 9. Bh4 {[%emt 0:01:30]} Qb6 {[%emt 0:01:30]} 10. Nd5 {[%emt 0:05:30]} Qd8 {[%emt 0:04:30]} 11. Be2 {[%emt 0:08:30]} Ne5 {[%emt 0:01:30]} 12. f4 {[%emt 0:10:30]} g5 {[%emt 0:03:30]} 13. fxe5 {[%emt 0:11:30]} gxh4 {[%emt 0:02:30]} 14. Bh5 {[%emt 0:05:30]} dxe5 {[%emt 0:00:30]} 15. O-O {[%emt 0:06:30]} exd4 {[%emt 0:03:30]} 16. Bxf7+ {[%emt 0:00:00]} Kd7 {[%emt 0:00:30]} 17. Qxd4 {[%emt 0:00:00]} Bg7 {[%emt 0:02:30]} 18. Nb6+ {[%emt 0:02:30]} Kc6 {[%emt 0:03:30]} 19. Bd5+ {[%emt 0:00:30]} Kd6 {[%emt 0:02:30]} 20. c5+ {[%emt 0:00:00]} Kc7 {[%emt 0:00:00]} 21. Nxa8+ {[%emt 0:00:00]} Kd7 {[%emt 0:00:00]} 22. Qxg7 {[%emt 0:00:00]} 1-0

[Event "4th Baskent University Open 2019"]
[Site "Ankara"]
[Date "2019.06.21"]
[Round "7"]
[White "Shapovalovi, Vasiko"]
[Black "Sinay, Ahmet"]
[Result "1-0"]
[ECO "A36"]
[WhiteElo "1759"]
[BlackElo "1636"]
[Annotator "NA"]
[PlyCount "41"]
[EventDate "2019.06.18"]
[EventType "swiss"]
[EventCountry "TUR"]
[SourceTitle "playchess.com"]
[Source "ChessBase"]
[SourceQuality "1"]
[TimeControl "5400+30"]

1. c4 {[%emt 0:00:30]} Nf6 {[%emt 0:00:30]} 2. Nc3 {[%emt 0:00:30]} g6 {[%emt 0:00:30]} 3. g3 {[%emt 0:00:00]} Bg7 {[%emt 0:00:30]} 4. Bg2 {[%emt 0:00:00]} O-O {[%emt 0:00:00]} 5. d3 {[%emt 0:00:30]} d6 {[%emt 0:00:00]} 6. e3 {[%emt 0:00:30]} c5 {[%emt 0:03:30]} 7. Nge2 {[%emt 0:00:00]} Nc6 {[%emt 0:00:30]} 8. O-O {[%emt 0:02:00]} e6 {[%emt 0:01:30]} 9. Rb1 {[%emt 0:00:30]} Qd7 {[%emt 0:04:30]} 10. a3 {[%emt 0:01:30]} Rb8 {[%emt 0:00:30]} 11. b4 {[%emt 0:06:30]} b6 {[%emt 0:00:30]} 12. d4 {[%emt 0:02:30]} Bb7 {[%emt 0:01:30]} 13. dxc5 {[%emt 0:01:30]} dxc5 {[%emt 0:01:30]} 14. bxc5 {[%emt 0:02:30]} bxc5 {[%emt 0:00:00]} 15. Qxd7 {[%emt 0:00:00]} Nxd7 {[%emt 0:00:00]} 16. Rxb7 {[%emt 0:00:00]} Rxb7 {[%emt 0:00:30]} 17. Bxc6 {[%emt 0:00:30]} Rc7 {[%emt 0:00:30]} 18. Bb5 {[%emt 0:06:30]} Ra8 {[%emt 0:00:30]} 19. Rd1 {[%emt 0:01:30]} Nb6 {[%emt 0:01:30]} 20. Ba6 {[%emt 0:00:30]} Nd7 {[%emt 0:01:30]} 21. Nb5 {[%emt 0:00:30]} 1-0

[Event "4th Baskent University Open 2019"]
[Site "Ankara"]
[Date "2019.06.21"]
[Round "7"]
[White "Sahin, Arda"]
[Black "Taban, Yagiz"]
[Result "1-0"]
[ECO "D02"]
[WhiteElo "1710"]
[BlackElo "1654"]
[Annotator "NA RC"]
[PlyCount "36"]
[EventDate "2019.06.18"]
[EventType "swiss"]
[EventCountry "TUR"]
[SourceTitle "playchess.com"]
[Source "ChessBase"]
[SourceQuality "1"]
[TimeControl "5400+30"]

1. Nf3 {[%emt 0:00:30]} Nf6 {[%emt 0:00:30]} 2. d4 {[%emt 0:00:30]} e6 {[%emt 0:00:30]} 3. Bf4 {[%emt 0:00:30]} b6 {[%emt 0:00:30]} 4. e3 {[%emt 0:00:00]} Bb7 {[%emt 0:00:30]} 5. Nbd2 {[%emt 0:00:00]} d5 {[%emt 0:00:30]} 6. Bd3 {[%emt 0:00:30]} Nbd7 {[%emt 0:03:30]} 7. c3 {[%emt 0:01:30]} Be7 {[%emt 0:05:30]} 8. Ne5 {[%emt 0:02:30]} Nxe5 {[%emt 0:09:30]} 9. Bxe5 {[%emt 0:08:30]} Bd6 {[%emt 0:12:30]} 10. f4 {[%emt 0:07:30]} h5 {[%emt 0:11:30]} 11. Qf3 {[%emt 0:10:30]} Qe7 {[%emt 0:04:30]} 12. O-O {[%emt 0:13:30]} O-O-O {[%emt 0:03:30]} 13. a4 {[%emt 0:02:30]} Rdg8 {[%emt 0:24:07]} 14. a5 {[%emt 0:02:30]} Ng4 {[%emt 0:05:24]} 15. axb6 {[%emt 0:02:30]} axb6 {[%emt 0:00:24]} 16. Ra7 {[%emt 0:21:30]} Bc6 {[%emt 0:03:18]} 17. Qe2 {[%emt 0:06:47]} Kd7 {[%emt 0:06:57]} 18. Bb5 {[%emt 0:12:21]} Nf6 {[%emt 0:02:45]} 1-0